fUSD/lending_fUSD_20250828
["ID","MTS","AMOUNT","RATE_DAILY","PERIOD"]
[381862908,1756374655729,-1400.0,0.0003025,7]
[381862910,1756374655739,-500.0,0.00030252,7]
[381862912,1756374655748,-150.0,0.00030273,120]
[381862914,1756374655757,-957.74,0.00030273,10]
[381862916,1756374655767,-1400.0,0.00030285,7]
[381862918,1756374655776,-500.0,0.00030288,7]
[381862920,1756374655785,-500.0,0.00030296,7]
[381862922,1756374655794,-500.0,0.00030326,7]
[381862924,1756374655803,-500.0,0.00030341,7]
[381862926,1756374655813,-1000.0,0.00030347,7]
[381862928,1756374655823,-719.90060203,0.00030357,7]
[381862930,1756374655832,-500.0,0.00030364,7]
[381862932,1756374655841,-1200.0,0.00030378,7]
[381862934,1756374655850,-600.0,0.00030381,7]
[381862936,1756374655859,-500.0,0.00030392,7]
[381862938,1756374655868,-1200.0,0.00030396,7]
[381862940,1756374655879,-1255.80049178,0.000304,4]
[381862942,1756374655890,-570.7453346,0.000304,4]
[381862944,1756374655902,-150.0,0.0003041,120]
[381862946,1756374655912,-500.0,0.00030418,7]
[381862948,1756374655921,-600.0,0.00030424,7]
[381862950,1756374655930,-1200.0,0.00030425,7]
[381862952,1756374655939,-500.0,0.00030431,7]
[381862954,1756374655949,-1000.0,0.0003044,7]
[381862956,1756374655958,-1000.0,0.00030461,7]
[381862958,1756374655967,-1600.0,0.00030488,7]
[381862960,1756374655976,-1000.0,0.00030508,7]
[381862962,1756374655985,-1200.0,0.00030522,7]
[381862964,1756374655995,-500.0,0.00030535,7]
[381862966,1756374656004,-150.0,0.00030547,120]
[381862968,1756374656013,-500.0,0.00030556,7]
[381862970,1756374656022,-807.67177523,0.00030561,7]
[381862972,1756374656032,-1200.0,0.0003057,7]
[381862974,1756374656041,-1600.0,0.00030575,7]
[381862976,1756374656050,-1400.0,0.0003058,7]
[381862978,1756374656059,-600.0,0.00030581,7]
[381862980,1756374656069,-600.0,0.00030628,7]
[381862982,1756374656078,-500.0,0.00030643,7]
[381862984,1756374656087,-9576.51948964,0.00030652,14]
[381862985,1756374656096,-1000.0,0.00030652,7]
[381862987,1756374656106,-500.0,0.00030683,7]
[381862989,1756374656115,-150.0,0.00030684,120]
[381862991,1756374656124,-1559.04,0.00030684,17]
[381862993,1756374656135,-500.0,0.00030684,7]
[381862995,1756374656144,-1200.0,0.00030684,7]
[381862997,1756374656154,-1400.0,0.00030696,7]
[381862999,1756374656163,-1255.80049178,0.0003072,4]
[381863001,1756374656173,-570.7453346,0.0003072,4]
[381863003,1756374656183,-600.0,0.00030731,7]
[381863005,1756374656192,-600.0,0.00030735,7]
[381863007,1756374656202,-500.0,0.0003075,7]
[381863009,1756374656212,-500.0,0.00030755,7]
[381863011,1756374656221,-500.0,0.00030759,7]
[381863013,1756374656231,-1600.0,0.00030761,7]
[381863015,1756374656240,-1200.0,0.00030781,7]
[381863017,1756374656250,-1200.0,0.00030789,7]
[381863019,1756374656259,-7844.13,0.000308,2]
[381863021,1756374656268,-1200.0,0.00030801,7]
[381863023,1756374656278,-500.0,0.00030804,7]
[381863025,1756374656288,-500.0,0.00030807,7]
[381863027,1756374656297,-500.0,0.0003082,7]
[381863029,1756374656306,-150.0,0.00030821,120]
[381863031,1756374656316,-600.0,0.00030822,80]
[381863033,1756374656325,-251.0,0.00030822,2]
[381863035,1756374656335,-500.0,0.00030832,7]
[381863037,1756374656344,-1400.0,0.00030836,7]
[381863039,1756374656357,-89188.86,0.000309,7]
[381863041,1756374656367,-600.0,0.00030902,7]
[381863043,1756374656377,-1400.0,0.00030903,7]
[381863045,1756374656387,-500.0,0.00030912,7]
[381863047,1756374656396,-1200.0,0.00030919,7]
[381863049,1756374656405,-600.0,0.00030924,7]
[381863051,1756374656415,-1412.93,0.00030928,15]
[381863053,1756374656424,-1400.0,0.00030935,7]
[381863055,1756374656433,-500.0,0.00030941,7]
[381863057,1756374656443,-1000.0,0.00030945,7]
[381863059,1756374656453,-150.0,0.00030958,120]
[381863061,1756374656462,-957.74,0.00030958,11]
[381863063,1756374656472,-1200.0,0.00030989,7]
[381863065,1756374656481,-500.0,0.00030998,7]
[381863067,1756374656498,-172.0,0.00031,2]
[381863069,1756374656516,-79518.15222789,0.00031,5]
[381863073,1756374656538,-4473.41085203,0.00031,5]
[381863075,1756374656549,-1979.637045,0.00031,5]
[381863082,1756374656616,-334.43696,0.00024798,2]
[381863702,1756374688463,-297.02469082,0.00015357,2]
[381863703,1756374689278,-395.35270016,0.00015357,2]
[381863704,1756374691642,-195.05335235,0.00015357,2]
[381863705,1756374696103,-160.0,0.00015357,2]
[381863706,1756374696370,-168.0,0.00015357,2]
[381863707,1756374699213,-237.884954,0.00015357,2]
[381863708,1756374701484,-70.68430267,0.00015357,2]
[381863709,1756374717057,160.27048522,0.00023058,30]
[381863710,1756374824855,150.0,0.00029041,120]
[381863711,1756374825096,165.78935626,0.00029178,120]
[381863717,1756374848985,157.6370209,0.00023058,30]
[381863725,1756375030788,155.04682802,0.00023058,30]
[381863726,1756375210120,152.49919557,0.00023058,30]
[381863739,1756375299879,-258.86722392,0.00015357,2]
[381863740,1756375302259,-441.48855108,0.00015357,2]
[381863741,1756375306655,-186.63442136,0.00015357,2]
[381863742,1756375310498,-228.61935761,0.00015357,2]
[381863743,1756375312242,-300.0,0.00015357,2]
[381863744,1756375313915,-365.17895863,0.00015357,2]
[381863745,1756375316789,-219.2114874,0.00015357,2]
[381863746,1756375316812,-224.355775,0.00015357,2]
[381863747,1756375317046,-150.0,0.00015357,2]
[381863748,1756375318588,-960.18490269,0.00015357,2]
[381863749,1756375323248,-665.45932231,0.00015357,2]
[381863750,1756375323276,-374.355775,0.00015357,2]
[381863751,1756375324166,-371.34085746,0.00015357,2]
[381863752,1756375324880,-297.77670265,0.00015357,2]
[381863753,1756375328236,-154.65566489,0.00015357,2]
[381863754,1756375359857,-292.80524972,0.00015357,2]
[381863755,1756375363544,-1524.0,0.00015357,2]
[381863756,1756375367655,-183.19475028,0.00015357,2]
[381863757,1756375367679,-205.51112063,0.00015357,2]
[381863758,1756375367711,-72.34487937,0.00015357,2]
[381863759,1756375406913,-334.0,0.00015469,2]
[381863760,1756375407654,-405.06965461,0.00015469,2]
[381863761,1756375409458,-156.70729984,0.00015469,2]
[381863762,1756375411002,-301.19512334,0.00015469,2]
[381863763,1756375412641,-327.02792221,0.00015469,2]
[381863765,1756375473339,-262.4,0.00013699,2]
[381863766,1756375482221,-244.67108354,0.00015379,2]
[381863767,1756375485118,-317.10591646,0.00015379,2]
[381863768,1756375543360,-250.0,0.00015357,2]
[381863769,1756375548157,-69.406,0.00015357,2]
[381863770,1756375578324,-155.65512063,0.00015556,2]
[381863771,1756375579009,-322.17605641,0.00015556,2]
[381863772,1756375581161,-693.7746662,0.00015556,2]
[381863773,1756375583679,-306.2253338,0.00015556,2]
[381863774,1756375585489,-46.16882296,0.00015556,2]
[381863776,1756375700821,-186.0880687,0.00015533,2]
[381863777,1756375703829,-36.64399486,0.00015533,2]
[381863778,1756375744925,-152.11838788,0.00015553,2]
[381863779,1756375747358,-244.0,0.00015553,2]
[381863780,1756375747711,-222.57947373,0.00015553,2]
[381863781,1756375750308,-905.30213839,0.00015553,2]
[381863782,1756375783984,-222.58,0.00015383,2]
[381863788,1756375832084,-150.0,0.00016033,3]
[381863789,1756375832093,-500.0,0.00016438,2]
[381863790,1756375832102,-155.78640123,0.00017022,2]
[381863791,1756375832113,-250.09855277,0.00017022,2]
[381863792,1756375832123,-1200.0,0.00017108,2]
[381863793,1756375832132,-300.0,0.00017108,2]
[381863794,1756375832141,-500.0,0.00017109,2]
[381863795,1756375832150,-3.96302869,0.00017109,2]
[381863796,1756375832188,-351.17144605,0.00017109,2]
[381863797,1756375832243,-92.32643987,0.00017109,2]
[381863798,1756375832253,-164.30187124,0.00017109,2]
[381863799,1756375832263,-500.0,0.00017109,2]
[381863800,1756375832273,-500.0,0.00017109,2]
[381863801,1756375832283,-500.0,0.00017109,2]
[381863802,1756375832293,-244.0,0.00017109,2]
[381863803,1756375832303,-211.68082745,0.0001711,2]
[381863804,1756375832314,-688.31917255,0.0001711,2]
[381863805,1756375832323,-250.0,0.00017112,2]
[381863806,1756375832333,-2559.0,0.00017808,2]
[381863807,1756375832342,-400.0,0.00017899,2]
[381863808,1756375832352,-400.0,0.00017899,2]
[381863809,1756375832361,-400.0,0.00017899,2]
[381863810,1756375832371,-550.0,0.00017986,2]
[381863811,1756375832380,-200.0,0.00017987,2]
[381863812,1756375832390,-8.00111478,0.00017987,2]
[381863813,1756375832402,-191.99888522,0.00017987,2]
[381863815,1756375832411,-500.0,0.00017987,2]
[381863817,1756375832420,-600.0,0.00017987,2]
[381863819,1756375832429,-323.00490277,0.00017987,2]
[381863821,1756375832441,-276.99509723,0.00017987,2]
[381863823,1756375832450,-537.82592665,0.00017987,2]
[381863825,1756375832463,-62.17407335,0.00017987,2]
[381863827,1756375832472,-522.50428063,0.00017987,2]
[381863830,1756375832487,-77.49571937,0.00017987,2]
[381863832,1756375832497,-151.0,0.00017987,2]
[381863834,1756375832506,-600.0,0.00017987,2]
[381863836,1756375832516,-600.0,0.00017987,2]
[381863838,1756375832525,-151.0,0.00017987,2]
[381863841,1756375832536,-600.0,0.00017987,2]
[381863843,1756375832549,-151.0,0.00017987,2]
[381863845,1756375832558,-600.0,0.00017987,2]
[381863847,1756375832568,-600.0,0.00017987,2]
[381863849,1756375832577,-264.00881791,0.00017987,2]
[381863851,1756375832587,-400.0,0.00017998,2]
[381863853,1756375832597,-400.0,0.00017999,2]
[381863855,1756375832606,-400.0,0.00017999,2]
[381863857,1756375832617,-400.0,0.00017999,2]
[381863859,1756375832626,-400.0,0.00017999,2]
[381863861,1756375832635,-330.39405375,0.00017999,2]
[381863863,1756375832644,-416.20715372,0.00017999,2]
[381863865,1756375832653,-500.0,0.00018042,2]
[381863867,1756375832662,-1000.0,0.00018082,3]
[381863868,1756375832672,-2500.0,0.00018082,2]
[381863870,1756375832682,-500.0,0.00018097,2]
[381863872,1756375832691,-500.0,0.00018152,2]
[381863874,1756375832700,-400.0,0.00018173,2]
[381863876,1756375832709,-400.0,0.00018173,2]
[381863878,1756375832718,-500.0,0.00018207,2]
[381863880,1756375832728,-500.0,0.00018262,2]
[381863882,1756375832737,-219.98385629,0.00018273,2]
[381863884,1756375832746,-500.0,0.00018317,2]
[381863886,1756375832755,-552.42508,0.00018372,2]
[381863888,1756375832765,-151.0,0.00018403,2]
[381863890,1756375832774,-151.0,0.00018407,2]
[381863892,1756375832784,-151.0,0.00018411,2]
[381863894,1756375832793,-291.720979,0.00018535,2]
[381863896,1756375832803,-151.0,0.00018535,2]
[381863898,1756375832812,-600.0,0.0001856,2]
[381863900,1756375832822,-220.81945769,0.0001856,2]
[381863902,1756375832831,-500.0,0.0001856,2]
[381863904,1756375832841,-500.0,0.0001856,2]
[381863906,1756375832850,-624.24866334,0.00018669,2]
[381863908,1756375832859,-500.0,0.00018669,2]
[381863910,1756375832868,-194.0,0.00018684,2]
[381863912,1756375832877,-1680.0,0.00018776,2]
[381863914,1756375832887,-500.0,0.00018815,2]
[381863916,1756375832896,-600.30022113,0.00018838,2]
[381863918,1756375832905,-666.0,0.00018956,3]
[381863920,1756375832914,-935.0,0.00019065,2]
[381863921,1756375832923,-151.0,0.00019083,2]
[381863923,1756375832933,-500.0,0.00019288,2]
[381863925,1756375832942,-365.57,0.000194,2]
[381863927,1756375832951,-151.0,0.00019631,2]
[381863929,1756375832960,-1000.0,0.0001964,2]
[381863931,1756375832969,-251.02,0.00019863,2]
[381863933,1756375832978,-13388.9187328,0.0002,2]
[381864253,1756375837988,-9624.50610751,0.0002,2]
[381864254,1756375837999,-487.39284,0.0002,2]
[381864255,1756375838040,-6964.36,0.0002,2]
[381864256,1756375838095,-3799.44438748,0.0002,2]
[381864257,1756375838106,-1149.5,0.0002,2]
[381864258,1756375838209,-562.4845,0.0002,2]
[381864259,1756375838263,-15832.50977205,0.0002,2]
[381864260,1756375838317,-4009.88531421,0.0002,2]
[381864427,1756375840070,-8.99834595,0.0002,2]
[381864429,1756375840080,-166.43,0.00020147,2]
[381864431,1756375840089,-90.53165405,0.00020179,2]
[381864433,1756375840102,-120.29912958,0.00020179,2]
[381864435,1756375840112,-151.12369664,0.00020187,2]
[381864451,1756375840258,-111.27630336,0.00020187,2]
[381864453,1756375840268,-3134.85538146,0.00020212,2]
[381864456,1756375840282,-1178.94075718,0.00020212,2]
[381864458,1756375840294,-6312.777878,0.00020212,2]
[381864464,1756375840336,-1618.21558447,0.00020212,2]
[381864466,1756375840348,-15981.78039889,0.00020212,2]
[381864468,1756375840358,-438.0,0.00020216,2]
[381864470,1756375840367,-167.74,0.00020281,2]
[381864472,1756375840377,-174.8,0.00020437,2]
[381864474,1756375840387,-2351.0,0.00020607,2]
[381864476,1756375840398,-200.0,0.00020726,2]
[381864478,1756375840407,-662.67,0.00020734,2]
[381864480,1756375840417,-1636.05,0.00020747,2]
[381864482,1756375840426,-160.0,0.00020876,7]
[381864484,1756375840435,-166.43,0.00021155,2]
[381864486,1756375840445,-1158.4051692,0.00021191,2]
[381864489,1756375840456,-328.5148308,0.00021191,2]
[381864492,1756375840466,-200.0,0.00021354,2]
[381864494,1756375840475,-186.31,0.00021526,2]
[381864497,1756375840485,-600.0,0.00021616,2]
[381864499,1756375840494,-2378.71472929,0.00021918,2]
[381864502,1756375840507,-2621.28527071,0.00021918,2]
[381864504,1756375840516,-3798.75897435,0.00022024,2]
[381864795,1756375843211,-2001.24102565,0.00022024,2]
[381864797,1756375843221,-5800.0,0.00022033,2]
[381864798,1756375843230,-5800.0,0.00022041,2]
[381864800,1756375843239,-5800.0,0.0002205,2]
[381864803,1756375843251,-5800.0,0.00022058,2]
[381864805,1756375843260,-5800.0,0.00022067,2]
[381864807,1756375843270,-5800.0,0.00022075,2]
[381864808,1756375843279,-5800.0,0.00022084,2]
[381864810,1756375843288,-5800.0,0.00022092,2]
[381864812,1756375843298,-1000.0,0.00022095,2]
[381864814,1756375843306,-5800.0,0.00022101,2]
[381864816,1756375843315,-5800.0,0.00022109,2]
[381864818,1756375843325,-166.43,0.00022162,2]
[381864820,1756375843334,-600.0,0.00022164,2]
[381864822,1756375843343,-471.84,0.00022341,2]
[381864824,1756375843352,-1000.0,0.00022563,2]
[381864826,1756375843361,-2551.0,0.00022617,2]
[381864828,1756375843370,-600.0,0.00022712,2]
[381864830,1756375843380,-4176.7,0.00022726,2]
[381864832,1756375843389,-400.0,0.0002297,2]
[381864834,1756375843398,-400.0,0.0002297,2]
[381864836,1756375843407,-400.0,0.0002307,2]
[381864837,1756375843416,-844.93374113,0.00023124,2]
[381864839,1756375843425,-212.25325354,0.00023136,2]
[381864841,1756375843434,-160.0,0.00023136,2]
[381864843,1756375843443,-160.0,0.00023136,2]
[381864845,1756375843452,-166.43,0.0002317,2]
[381864847,1756375843461,-600.0,0.0002326,2]
[381864849,1756375843471,-250.0,0.00023406,2]
[381864851,1756375843481,-600.0,0.00023808,2]
[381864853,1756375843489,-349.16,0.00024109,2]
[381864855,1756375843498,-166.43,0.00024177,2]
[381864857,1756375843507,-600.0,0.00024356,2]
[381864859,1756375843517,-1000.0,0.0002455,2]
[381864861,1756375843526,-1000.0,0.00024658,2]
[381864863,1756375843535,-539.0,0.00024767,2]
[381864864,1756375843545,-121476.0,0.000248,2]
[381864866,1756375843556,-2000.0,0.000249,2]
[381864868,1756375843565,-9769.82242944,0.000249,2]
[381864870,1756375843574,-600.0,0.00024904,2]
[381864872,1756375843584,-1241.22402858,0.00025,10]
[381864874,1756375843592,-618.17141623,0.00025452,2]
[381864876,1756375843602,-5511.0,0.000255,3]
[381864878,1756375843611,-30728.2814081,0.0002569,3]
[381864880,1756375843620,-844.93374113,0.0002569,3]
[381864882,1756375843629,-160.0,0.0002569,3]
[381864885,1756375843639,-9769.82242943,0.00025859,4]
[381864888,1756375843648,-1058.53,0.00026,2]
[381864892,1756375843657,-5511.0,0.000262,5]
[381864894,1756375843666,-163.39,0.0002622,2]
[381864897,1756375843675,-500.0,0.00026373,2]
[381864899,1756375843685,-500.0,0.00026373,2]
[381864902,1756375843694,-30728.2814081,0.0002639,3]
[381864905,1756375843703,-844.93374113,0.0002639,3]
[381864907,1756375843713,-400.0,0.00026399,2]
[381864909,1756375843722,-283.42,0.00026399,2]
[381864911,1756375843731,-400.0,0.00026399,2]
[381864913,1756375843740,-400.0,0.00026399,2]
[381864915,1756375843749,-400.0,0.00026399,2]
[381864917,1756375843758,-400.0,0.00026399,2]
[381864919,1756375843767,-400.0,0.00026399,2]
[381864921,1756375843776,-400.0,0.00026399,2]
[381864923,1756375843786,-400.0,0.00026399,2]
[381864924,1756375843795,-160.0,0.000264,3]
[381864926,1756375843805,-781.0,0.000265,2]
[381864928,1756375843814,-2500.0,0.00026525,7]
[381864930,1756375843823,-2500.0,0.00026534,7]
[381864932,1756375843833,-201.92,0.00026557,2]
[381864934,1756375843842,-400.0,0.00026673,2]
[381864936,1756375843851,-400.0,0.00026673,2]
[381864938,1756375843860,-400.0,0.00026673,2]
[381864940,1756375843869,-400.0,0.00026673,2]
[381864942,1756375843879,-400.0,0.00026673,2]
[381864944,1756375843888,-400.0,0.00026673,2]
[381864946,1756375843897,-400.0,0.00026673,2]
[381864948,1756375843906,-262.4,0.00026676,2]
[381864950,1756375843916,-325.89,0.00026706,2]
[381864952,1756375843925,-150.095,0.0002681,2]
[381864953,1756375843934,-150.105,0.0002681,2]
[381864955,1756375843944,-150.0,0.0002681,2]
[381864957,1756375843953,-9769.82242943,0.00026817,6]
[381864959,1756375843962,-1000.0,0.00026921,2]
[381864961,1756375843971,-500.0,0.00026921,2]
[381864963,1756375843980,-344.40112935,0.00026947,2]
[381864965,1756375843989,-400.0,0.00026947,2]
[381864967,1756375843999,-400.0,0.00026947,2]
[381864969,1756375844008,-400.0,0.00026947,2]
[381864971,1756375844017,-400.0,0.00026947,2]
[381864973,1756375844026,-400.0,0.00026947,2]
[381864975,1756375844036,-400.0,0.00026947,2]
[381864976,1756375844045,-2370.54947932,0.0002698,7]
[381864977,1756375844054,-160.0,0.00027,7]
[381864978,1756375844063,-1000.0,0.00027005,2]
[381864979,1756375844072,-400.0,0.00027221,2]
[381864980,1756375844081,-400.0,0.00027221,2]
[381864981,1756375844089,-400.0,0.00027221,2]
[381864982,1756375844098,-1058.53,0.000273,2]
[381864983,1756375844107,-500.0,0.00027397,15]
[381864984,1756375844116,-500.0,0.00027397,15]
[381864985,1756375844125,-295.68685245,0.00027397,15]
[381864986,1756375844134,-515.0217583,0.00027397,2]
[381864987,1756375844143,-300.0,0.00027397,2]
[381864988,1756375844152,-4000.0,0.00027397,2]
[381864989,1756375844161,-600.0,0.00027397,80]
[381864990,1756375844169,-1142.041,0.00027487,16]
[381864991,1756375844178,-163.007,0.00027487,16]
[381864992,1756375844188,-400.0,0.00027495,2]
[381864993,1756375844197,-400.0,0.00027495,2]
[381864994,1756375844206,-275.0,0.00027495,2]
[381864995,1756375844215,-400.0,0.00027599,2]
[381864996,1756375844223,-400.0,0.00027599,2]
[381864997,1756375844233,-400.0,0.00027599,2]
[381864999,1756375844242,-400.0,0.00027599,2]
[381865001,1756375844251,-400.0,0.00027599,2]
[381865003,1756375844260,-400.0,0.00027599,2]
[381865005,1756375844270,-400.0,0.00027599,2]
[381865007,1756375844279,-400.0,0.00027599,2]
[381865009,1756375844289,-400.0,0.00027599,2]
[381865011,1756375844298,-275.31885085,0.00027671,6]
[381865013,1756375844307,-150.0,0.00027671,6]
[381865015,1756375844316,-150.0,0.00027671,6]
[381865017,1756375844326,-500.0,0.00027671,6]
[381865019,1756375844335,-500.0,0.00027671,6]
[381865021,1756375844344,-500.0,0.00027671,6]
[381865023,1756375844353,-150.0,0.00027671,6]
[381865025,1756375844363,-400.0,0.00027769,2]
[381865027,1756375844372,-530.27814858,0.00027769,2]
[381865029,1756375844381,-9769.82242943,0.00027776,8]
[381865031,1756375844391,-301.77037141,0.0002778,2]
[381865033,1756375844400,-844.93374113,0.000278,7]
[381865035,1756375844410,-30728.2814081,0.0002787,3]
[381865037,1756375844419,-344.00800295,0.00027873,2]
[381865039,1756375844428,-400.0,0.00027873,2]
[381865041,1756375844438,-400.0,0.00027873,2]
[381865043,1756375844448,-400.0,0.00027873,2]
[381865045,1756375844457,-400.0,0.00027873,2]
[381865046,1756375844466,-400.0,0.00027873,2]
[381865049,1756375844476,-400.0,0.00027873,2]
[381865050,1756375844485,-400.0,0.00027873,2]
[381865052,1756375844494,-718.0,0.00027889,2]
[381865054,1756375844502,-4156.0,0.00027889,2]
[381865056,1756375844511,-13332.07,0.00027889,2]
[381865058,1756375844519,-400.0,0.00027899,2]
[381865060,1756375844529,-400.0,0.00027899,2]
[381865062,1756375844537,-412.52,0.00027899,2]
[381865064,1756375844549,-300.44409625,0.00027899,2]
[381865066,1756375844559,-400.0,0.00027899,2]
[381865068,1756375844568,-400.0,0.00027899,2]
[381865070,1756375844578,-423.69,0.00027899,2]
[381865072,1756375844587,-400.0,0.00027899,2]
[381865074,1756375844597,-400.0,0.00027899,2]
[381865076,1756375844607,-400.0,0.00027899,2]
[381865078,1756375844617,-844.93374113,0.000279,3]
[381865080,1756375844627,-150.0,0.00027945,6]
[381865082,1756375844638,-150.0,0.00027945,6]
[381865084,1756375844647,-500.0,0.00027945,6]
[381865086,1756375844656,-500.0,0.00027945,6]
[381865088,1756375844667,-500.0,0.00027945,6]
[381865090,1756375844676,-150.0,0.00027945,6]
[381865092,1756375844685,-400.0,0.00028043,2]
[381865094,1756375844695,-150.0,0.0002811,2]
[381865096,1756375844703,-150.0,0.0002811,2]
[381865098,1756375844713,-150.178,0.0002811,2]
[381865100,1756375844722,-926.0,0.0002811,2]
[381865102,1756375844733,-2032.0,0.0002811,2]
[381865104,1756375844746,-3376.0,0.0002811,2]
[381865106,1756375844755,-1256.0,0.0002811,2]
[381865108,1756375844764,-599.0,0.0002811,2]
[381865110,1756375844774,-1575.0,0.0002811,2]
[381865112,1756375844782,-566.0,0.0002811,2]
[381865114,1756375844791,-1298.0,0.0002811,2]
[381865116,1756375844801,-400.0,0.00028147,2]
[381865118,1756375844810,-400.0,0.00028147,2]
[381865120,1756375844820,-400.0,0.00028147,2]
[381865122,1756375844829,-400.0,0.00028147,2]
[381865124,1756375844838,-400.0,0.00028147,2]
[381865126,1756375844847,-400.0,0.00028173,2]
[381865128,1756375844856,-400.0,0.00028173,2]
[381865130,1756375844866,-412.52,0.00028173,2]
[381865132,1756375844875,-400.0,0.00028173,2]
[381865134,1756375844884,-400.0,0.00028173,2]
[381865136,1756375844893,-400.0,0.00028173,2]
[381865138,1756375844902,-400.0,0.00028173,2]
[381865140,1756375844911,-446.81618788,0.00028173,2]
[381865142,1756375844920,-200.0,0.00028219,6]
[381865144,1756375844930,-200.0,0.00028219,6]
[381865146,1756375844939,-500.0,0.00028219,6]
[381865148,1756375844948,-500.0,0.00028219,6]
[381865150,1756375844957,-500.0,0.00028219,6]
[381865152,1756375844967,-150.0,0.00028219,6]
[381865154,1756375844976,-400.0,0.00028317,2]
[381865156,1756375844986,-2000.0,0.000284,2]
[381865158,1756375844996,-400.0,0.00028421,2]
[381865160,1756375845005,-400.0,0.00028421,2]
[381865162,1756375845014,-320.06,0.00028447,2]
[381865164,1756375845023,-412.52,0.00028447,2]
[381865166,1756375845033,-400.0,0.00028447,2]
[381865168,1756375845042,-500.0,0.00028493,6]
[381865169,1756375845051,-150.0,0.00028493,6]
[381865171,1756375845061,-212.25325354,0.000285,7]
[381865173,1756375845070,-400.0,0.00028591,2]
[381865175,1756375845079,-1096.72,0.000286,7]
[381865177,1756375845089,-400.0,0.00028695,2]
[381865179,1756375845098,-400.0,0.00028695,2]
[381865181,1756375845107,-412.52,0.00028721,2]
[381865183,1756375845116,-9769.82242943,0.00028734,10]
[381865185,1756375845126,-500.0,0.00028767,6]
[381865187,1756375845135,-150.0,0.00028767,6]
[381865189,1756375845144,-160.0,0.000288,10]
[381865191,1756375845154,-400.0,0.00028865,2]
[381865193,1756375845163,-400.0,0.00028899,2]
[381865195,1756375845172,-400.0,0.00028899,2]
[381865197,1756375845182,-400.0,0.00028899,2]
[381865199,1756375845191,-400.0,0.00028899,2]
[381865201,1756375845200,-758.21,0.00028899,7]
[381865203,1756375845209,-400.0,0.00028899,2]
[381865205,1756375845219,-400.0,0.00028899,2]
[381865207,1756375845228,-400.0,0.00028899,2]
[381865209,1756375845237,-30728.2814081,0.00028959,3]
[381865211,1756375845246,-400.0,0.00028969,2]
[381865213,1756375845255,-400.0,0.00028969,2]
[381865215,1756375845264,-412.52,0.00028995,2]
[381865217,1756375845273,-844.93374113,0.00029,10]
[381865219,1756375845282,-662.67,0.00029027,2]
[381865221,1756375845291,-326.0,0.00029041,6]
[381865223,1756375845301,-200.0,0.00029041,6]
[381865225,1756375845310,-1000.0,0.000291,2]
[381865227,1756375845319,-2980.3488849,0.000291,2]
[381865316,1756375846129,-1174.0,0.00028333,2]
[381865318,1756375846139,-10252.37807167,0.000291,2]
[381865333,1756375846320,-6273.55137,0.000291,2]
[381865334,1756375846332,-1587.04092854,0.000291,2]
[381865335,1756375846344,-9386.7,0.000291,2]
[381865336,1756375846354,-3143.88672,0.000291,2]
[381865338,1756376008954,-500.0,0.00013699,2]
[381865341,1756376488630,-259.56,0.00013699,2]
[381865343,1756376509890,-169.322,0.00013699,2]
[381865368,1756376697798,166.66,0.00012371,2]